fUST/lending_fUST_20250904
["ID","MTS","AMOUNT","RATE_DAILY","PERIOD"]
[383476808,1756955445634,-485.23,0.00014794,2]
[383476810,1756955445646,-1327.33,0.00014794,2]
[383476812,1756955445657,-1263.77,0.00014794,2]
[383476815,1756955445667,-347.33337912,0.00014794,2]
[383476817,1756955445678,-923.88,0.00014794,2]
[383476819,1756955445688,-851.56,0.00014794,2]
[383476821,1756955445699,-764.01,0.00014794,2]
[383476823,1756955445710,-480.0,0.00014794,2]
[383476825,1756955445720,-480.0,0.00014794,2]
[383476827,1756955445730,-480.0,0.00014794,2]
[383476829,1756955445739,-480.0,0.00014794,2]
[383476831,1756955445750,-480.0,0.00014794,2]
[383476833,1756955445760,-794.23,0.00014794,2]
[383476835,1756955445769,-666.55,0.00014794,2]
[383476837,1756955445779,-1790.64,0.00014794,2]
[383476839,1756955445789,-480.0,0.00014794,2]
[383476841,1756955445799,-480.0,0.00014794,2]
[383476844,1756955445808,-580.01,0.00014794,2]
[383476846,1756955445818,-584.75,0.00014794,2]
[383476848,1756955445829,-2405.87,0.00014794,2]
[383476850,1756955445841,-354.56521704,0.00014794,2]
[383476852,1756955445854,-480.0,0.00014794,2]
[383476854,1756955445864,-480.0,0.00014794,2]
[383476856,1756955445874,-480.0,0.00014794,2]
[383476858,1756955445884,-480.0,0.00014794,2]
[383476860,1756955445894,-480.0,0.00014794,2]
[383476862,1756955445905,-896.42,0.00014794,2]
[383476864,1756955445914,-173.0,0.00014928,2]
[383476866,1756955445924,-420.0,0.00015009,2]
[383476868,1756955445934,-156.97512222,0.00015068,2]
[383476870,1756955445943,-500.0,0.00015068,2]
[383476872,1756955445956,-480.0,0.00015068,2]
[383476874,1756955445968,-480.0,0.00015068,2]
[383476876,1756955445977,-194.53632978,0.00015068,2]
[383476878,1756955445987,-480.0,0.00015068,2]
[383476880,1756955445996,-480.0,0.00015068,2]
[383476882,1756955446006,-480.0,0.00015068,2]
[383476884,1756955446016,-480.0,0.00015068,2]
[383476886,1756955446025,-480.0,0.00015068,2]
[383476888,1756955446035,-262.29914732,0.00015068,2]
[383476890,1756955446045,-360.97995712,0.00015068,2]
[383476892,1756955446055,-485.23,0.00015068,2]
[383476895,1756955446065,-1327.33,0.00015068,2]
[383476897,1756955446074,-1263.77,0.00015068,2]
[383476899,1756955446084,-923.88,0.00015068,2]
[383476901,1756955446093,-851.56,0.00015068,2]
[383476903,1756955446103,-764.01,0.00015068,2]
[383476905,1756955446113,-480.0,0.00015068,2]
[383476907,1756955446122,-480.0,0.00015068,2]
[383476909,1756955446131,-480.0,0.00015068,2]
[383476911,1756955446140,-480.0,0.00015068,2]
[383476913,1756955446149,-480.0,0.00015068,2]
[383476915,1756955446159,-794.23,0.00015068,2]
[383476917,1756955446168,-666.55,0.00015068,2]
[383476919,1756955446178,-1790.64,0.00015068,2]
[383476921,1756955446188,-480.0,0.00015068,2]
[383476923,1756955446198,-480.0,0.00015068,2]
[383476925,1756955446207,-580.01,0.00015068,2]
[383476927,1756955446217,-584.75,0.00015068,2]
[383476929,1756955446226,-2405.87,0.00015068,2]
[383476931,1756955446236,-480.0,0.00015068,2]
[383476933,1756955446245,-480.0,0.00015068,2]
[383476935,1756955446254,-480.0,0.00015068,2]
[383476937,1756955446264,-480.0,0.00015068,2]
[383476939,1756955446273,-480.0,0.00015068,2]
[383476940,1756955446283,-896.42,0.00015068,2]
[383476943,1756955446294,-299.73879381,0.0001508,2]
[383476945,1756955446303,-217.28705225,0.00015221,2]
[383476947,1756955446314,-503.40915118,0.00015221,2]
[383476950,1756955446324,-1000.0,0.00015221,2]
[383476953,1756955446334,-1004.40997062,0.00015221,2]
[383476955,1756955446343,-509.01026563,0.00015221,2]
[383476958,1756955446353,-519.63847923,0.00015221,2]
[383476961,1756955446362,-1000.0,0.00015221,2]
[383476964,1756955446371,-1000.0,0.00015221,2]
[383476967,1756955446381,-1000.0,0.00015221,2]
[383476970,1756955446390,-151.0,0.0001525,2]
[383476972,1756955446399,-151.0,0.0001525,2]
[383476974,1756955446409,-151.0,0.0001525,2]
[383476976,1756955446418,-151.0,0.0001525,2]
[383476978,1756955446427,-151.0,0.0001525,2]
[383476979,1756955446437,-151.0,0.0001525,2]
[383476981,1756955446446,-151.0,0.0001525,2]
[383476983,1756955446456,-186.607553,0.0001525,2]
[383476985,1756955446466,-151.0,0.0001525,2]
[383476987,1756955446475,-153.015375,0.0001525,2]
[383476989,1756955446485,-152.933681,0.0001525,2]
[383476991,1756955446494,-151.0,0.0001525,2]
[383476993,1756955446503,-151.0,0.0001525,2]
[383476995,1756955446512,-151.0,0.0001525,2]
[383476997,1756955446521,-178.086521,0.0001525,2]
[383476999,1756955446531,-151.0,0.0001525,2]
[383477001,1756955446541,-151.0,0.0001525,2]
[383477003,1756955446551,-1731.0,0.0001525,2]
[383477005,1756955446561,-1731.0,0.0001525,2]
[383477007,1756955446571,-1731.0,0.0001525,2]
[383477009,1756955446580,-1731.0,0.0001525,2]
[383477011,1756955446594,-1731.0,0.0001525,2]
[383477013,1756955446604,-1731.0,0.0001525,2]
[383477015,1756955446614,-215.2273641,0.0001525,2]
[383477017,1756955446624,-1731.0,0.0001525,2]
[383477019,1756955446633,-1731.0,0.0001525,2]
[383477021,1756955446646,-1731.0,0.0001525,2]
[383477023,1756955446657,-1529.92033932,0.0001525,2]
[383477025,1756955446666,-1731.0,0.0001525,2]
[383477027,1756955446676,-1731.0,0.0001525,2]
[383477029,1756955446685,-1731.0,0.0001525,2]
[383477031,1756955446695,-1731.0,0.0001525,2]
[383477033,1756955446705,-521.434516,0.0001525,2]
[383477035,1756955446715,-1731.0,0.0001525,2]
[383477038,1756955446725,-1731.0,0.0001525,2]
[383477040,1756955446734,-521.434516,0.0001525,2]
[383477042,1756955446744,-151.0,0.0001525,2]
[383477044,1756955446754,-521.434516,0.0001525,2]
[383477046,1756955446764,-521.434516,0.0001525,2]
[383477048,1756955446773,-500.0,0.00015342,2]
[383477050,1756955446782,-480.0,0.00015342,2]
[383477052,1756955446792,-480.0,0.00015342,2]
[383477054,1756955446802,-151.0,0.00015342,2]
[383477056,1756955446812,-151.590363,0.00015342,2]
[383477057,1756955446821,-480.0,0.00015342,2]
[383477060,1756955446831,-480.0,0.00015342,2]
[383477061,1756955446842,-314.4062988,0.00015342,2]
[383477063,1756955446851,-480.0,0.00015342,2]
[383477065,1756955446861,-480.0,0.00015342,2]
[383477067,1756955446871,-485.23,0.00015342,2]
[383477069,1756955446880,-1327.33,0.00015342,2]
[383477071,1756955446890,-1263.77,0.00015342,2]
[383477073,1756955446899,-923.88,0.00015342,2]
[383477075,1756955446909,-851.56,0.00015342,2]
[383477077,1756955446919,-764.01,0.00015342,2]
[383477079,1756955446928,-480.0,0.00015342,2]
[383477081,1756955446937,-480.0,0.00015342,2]
[383477083,1756955446946,-480.0,0.00015342,2]
[383477085,1756955446956,-237.11779469,0.00015342,2]
[383477087,1756955446965,-295.30049674,0.00015342,2]
[383477089,1756955446975,-794.23,0.00015342,2]
[383477091,1756955446984,-666.55,0.00015342,2]
[383477093,1756955446994,-1790.64,0.00015342,2]
[383477095,1756955447004,-480.0,0.00015342,2]
[383477097,1756955447013,-480.0,0.00015342,2]
[383477099,1756955447023,-580.01,0.00015342,2]
[383477101,1756955447032,-584.75,0.00015342,2]
[383477103,1756955447041,-2405.87,0.00015342,2]
[383477105,1756955447051,-480.0,0.00015342,2]
[383477107,1756955447060,-480.0,0.00015342,2]
[383477109,1756955447070,-210.85503184,0.00015342,2]
[383477111,1756955447080,-480.0,0.00015342,2]
[383477113,1756955447089,-480.0,0.00015342,2]
[383477115,1756955447099,-160.0,0.00015356,2]
[383477117,1756955447108,-151.0,0.00015431,2]
[383477119,1756955447117,-291.03249184,0.00015431,2]
[383477121,1756955447127,-151.0,0.00015431,2]
[383477123,1756955447136,-187.78006525,0.00015431,2]
[383477125,1756955447146,-151.0,0.00015431,2]
[383477127,1756955447155,-151.0,0.00015431,2]
[383477129,1756955447165,-250.0,0.00015431,2]
[383477131,1756955447174,-151.0,0.00015431,2]
[383477132,1756955447183,-151.0,0.00015431,2]
[383477133,1756955447193,-250.0,0.00015431,2]
[383477134,1756955447202,-154.57353171,0.00015431,2]
[383477135,1756955447212,-250.0,0.00015431,2]
[383477136,1756955447222,-250.0,0.00015431,2]
[383477137,1756955447234,-250.0,0.00015431,2]
[383477138,1756955447243,-151.0,0.00015431,2]
[383477139,1756955447252,-250.0,0.00015431,2]
[383477141,1756955447262,-250.0,0.00015431,2]
[383477143,1756955447271,-151.0,0.00015431,2]
[383477145,1756955447280,-151.0,0.00015431,2]
[383477147,1756955447290,-250.0,0.00015431,2]
[383477149,1756955447299,-2347.87260389,0.00015431,2]
[383477151,1756955447309,-151.0,0.00015431,2]
[383477153,1756955447318,-250.0,0.00015431,2]
[383477155,1756955447328,-250.0,0.00015431,2]
[383477157,1756955447337,-151.0,0.00015431,2]
[383477159,1756955447347,-250.0,0.00015431,2]
[383477161,1756955447357,-151.0,0.00015431,2]
[383477163,1756955447366,-250.0,0.00015431,2]
[383477165,1756955447376,-250.0,0.00015431,2]
[383477167,1756955447385,-151.0,0.00015431,2]
[383477169,1756955447396,-250.0,0.00015431,2]
[383477171,1756955447405,-271.44145063,0.00015431,2]
[383477173,1756955447415,-250.0,0.00015431,2]
[383477175,1756955447424,-151.0,0.00015431,2]
[383477177,1756955447434,-151.0,0.00015431,2]
[383477179,1756955447445,-250.0,0.00015431,2]
[383477193,1756955447560,-151.0,0.00015431,2]
[383477195,1756955447570,-151.0,0.00015431,2]
[383477197,1756955447579,-151.0,0.00015431,2]
[383477199,1756955447589,-187.7618216,0.00015431,2]
[383477201,1756955447598,-152.41700061,0.00015431,2]
[383477203,1756955447607,-250.0,0.00015436,2]
[383477205,1756955447617,-2434.74389024,0.00015486,2]
[383477207,1756955447627,-1011.886,0.00015517,2]
[383477209,1756955447637,-2159.74,0.00015517,2]
[383477211,1756955447647,-633.0,0.00015517,2]
[383477213,1756955447656,-2524.82941417,0.00015541,2]
[383477215,1756955447667,-160.3785678,0.00015543,2]
[383477217,1756955447678,-870.0908548,0.00015573,2]
[383477219,1756955447687,-860.129806,0.00015573,2]
[383477221,1756955447696,-664.3798606,0.00015573,2]
[383477223,1756955447706,-776.5680502,0.00015573,2]
[383477226,1756955447715,-151.0,0.0001559,2]
[383477228,1756955447724,-151.0,0.0001559,2]
[383477230,1756955447733,-151.0,0.0001559,2]
[383477232,1756955447742,-388.2840251,0.0001559,2]
[383477234,1756955447752,-2618.2481025,0.00015596,2]
[383477236,1756955447761,-178.08652,0.00015596,2]
[383477238,1756955447770,-500.0,0.00015616,2]
[383477240,1756955447779,-480.0,0.00015616,2]
[383477242,1756955447789,-284.38677616,0.00015616,2]
[383477244,1756955447797,-204.960557,0.00015616,2]
[383477246,1756955447806,-480.0,0.00015616,2]
[383477248,1756955447815,-151.0,0.00015616,2]
[383477250,1756955447825,-151.0,0.00015616,2]
[383477252,1756955447834,-151.610136,0.00015616,2]
[383477254,1756955447843,-151.0,0.00015616,2]
[383477256,1756955447853,-535.55637492,0.00015616,2]
[383477258,1756955447862,-480.0,0.00015616,2]
[383477260,1756955447872,-151.0,0.00015616,2]
[383477262,1756955447881,-151.0,0.00015616,2]
[383477264,1756955447891,-151.0,0.00015616,2]
[383477266,1756955447900,-480.0,0.00015616,2]
[383477268,1756955447909,-485.23,0.00015616,2]
[383477270,1756955447919,-1327.33,0.00015616,2]
[383477272,1756955447928,-1263.77,0.00015616,2]
[383477274,1756955447937,-923.88,0.00015616,2]
[383477276,1756955447946,-851.56,0.00015616,2]
[383477278,1756955447955,-764.01,0.00015616,2]
[383477280,1756955447964,-480.0,0.00015616,2]
[383477282,1756955447973,-480.0,0.00015616,2]
[383477284,1756955447983,-480.0,0.00015616,2]
[383477286,1756955447991,-794.23,0.00015616,2]
[383477288,1756955448001,-666.55,0.00015616,2]
[383477290,1756955448010,-1790.64,0.00015616,2]
[383477292,1756955448020,-480.0,0.00015616,2]
[383477294,1756955448029,-480.0,0.00015616,2]
[383477296,1756955448040,-580.01,0.00015616,2]
[383477298,1756955448049,-584.75,0.00015616,2]
[383477300,1756955448060,-2405.87,0.00015616,2]
[383477302,1756955448070,-480.0,0.00015616,2]
[383477304,1756955448080,-480.0,0.00015616,2]
[383477306,1756955448089,-480.0,0.00015616,2]
[383477308,1756955448099,-480.0,0.00015616,2]
[383477310,1756955448111,-2715.12328229,0.00015651,2]
[383477312,1756955448121,-151.0,0.000157,2]
[383477314,1756955448131,-184.19889138,0.00015706,2]
[383477316,1756955448140,-250.0,0.00015714,2]
[383477318,1756955448150,-208.766,0.00015714,2]
[383477320,1756955448159,-224.196,0.00015714,2]
[383477322,1756955448169,-250.0,0.00015714,2]
[383477324,1756955448178,-250.498,0.00015714,2]
[383477326,1756955448187,-249.1,0.00015714,2]
[383477328,1756955448197,-262.104,0.00015714,2]
[383477330,1756955448206,-221.273,0.00015714,2]
[383477332,1756955448216,-737.46934477,0.00015768,2]
[383477334,1756955448225,-1003.72540224,0.00015768,2]
[383477336,1756955448235,-508.49413806,0.00015768,2]
[383477338,1756955448245,-1500.0,0.00015768,2]
[383477340,1756955448254,-174.51579821,0.0001579,2]
[383477342,1756955448264,-151.0,0.00015798,2]
[383477344,1756955448273,-151.0,0.00015798,2]
[383477346,1756955448283,-151.0,0.00015798,2]
[383477348,1756955448293,-164.29498884,0.0001586,2]
[383477350,1756955448303,-500.78834048,0.0001586,2]
[383477352,1756955448312,-500.62729822,0.00015872,2]
[383477354,1756955448322,-500.0,0.0001589,2]
[383477356,1756955448332,-314.13192448,0.0001589,2]
[383477358,1756955448342,-152.322662,0.0001589,2]
[383477360,1756955448351,-269.09309013,0.0001589,2]
[383477362,1756955448361,-500.0,0.0001589,2]
[383477364,1756955448370,-151.07393802,0.0001589,2]
[383477366,1756955448380,-151.0,0.0001589,2]
[383477368,1756955448389,-151.0,0.0001589,2]
[383477370,1756955448399,-151.0,0.0001589,2]
[383477372,1756955448408,-151.0,0.0001589,2]
[383477374,1756955448419,-151.0,0.0001589,2]
[383477376,1756955448428,-500.0,0.0001589,2]
[383477378,1756955448438,-500.0,0.0001589,2]
[383477380,1756955448448,-151.0,0.0001589,2]
[383477382,1756955448457,-500.0,0.0001589,2]
[383477384,1756955448467,-500.0,0.0001589,2]
[383477386,1756955448476,-151.0,0.0001589,2]
[383477388,1756955448487,-151.22071053,0.0001589,2]
[383477390,1756955448497,-480.0,0.0001589,2]
[383477392,1756955448506,-480.0,0.0001589,2]
[383477394,1756955448515,-480.0,0.0001589,2]
[383477396,1756955448525,-485.23,0.0001589,2]
[383477398,1756955448534,-1327.33,0.0001589,2]
[383477400,1756955448543,-1263.77,0.0001589,2]
[383477402,1756955448554,-923.88,0.0001589,2]
[383477404,1756955448564,-851.56,0.0001589,2]
[383477406,1756955448574,-764.01,0.0001589,2]
[383477408,1756955448584,-622.4407,0.0001589,2]
[383477410,1756955448593,-480.0,0.0001589,2]
[383477413,1756955448603,-480.0,0.0001589,2]
[383477415,1756955448612,-794.23,0.0001589,2]
[383477417,1756955448621,-666.55,0.0001589,2]
[383477419,1756955448637,-471.6234691,0.0001589,2]
[383477616,1756955450563,-0.01599315,0.00013698,2]
[383477630,1756955450701,-31.27765076,0.00013698,2]
[383478216,1756955456925,217.02904598,0.00013015,2]
[383480435,1756955850081,220.04,0.00012329,2]
[383480445,1756955993120,666.0,0.00012847,2]
[383480446,1756956140685,-309.62308266,0.00013158,2]
[383480448,1756956321699,1000.0,0.00029735,120]
[383480449,1756956321951,1000.0,0.00029735,120]
[383480450,1756956322182,1000.0,0.00029735,120]
[383480451,1756956322429,1000.0,0.00029735,120]
[383480452,1756956322679,1000.0,0.00029735,120]
[383480453,1756956322953,1000.0,0.00029735,120]
[383480454,1756956323193,1000.0,0.00029735,120]
[383480455,1756956323580,1000.0,0.00029735,120]
[383480456,1756956323715,1000.0,0.00029735,120]
[383480457,1756956323971,1000.0,0.00029735,120]
[383480458,1756956324207,1000.0,0.00029735,120]
[383480459,1756956324467,1000.0,0.00029735,120]
[383480460,1756956324781,1000.0,0.00029735,120]
[383480461,1756956325037,1000.0,0.00029735,120]
[383480462,1756956325286,1000.0,0.00029735,120]
[383480463,1756956325552,1000.0,0.00029735,120]
[383480464,1756956325812,1000.0,0.00029735,120]
[383480465,1756956326079,1000.0,0.00029735,120]
[383480466,1756956326336,1000.0,0.00029735,120]
[383480467,1756956326609,1000.0,0.00029735,120]
[383480468,1756956326899,1000.0,0.00029735,120]
[383480469,1756956327155,1000.0,0.00029735,120]
[383480470,1756956327409,310.15942351,0.00029735,120]
[383480481,1756956440619,-2275.31053341,0.00013598,2]
[383480482,1756956440642,-300.0,0.00013696,2]
[383480483,1756956440671,-300.0,0.00013697,2]
[383480484,1756956440697,-326.81215849,0.00013697,2]
[383480485,1756956442825,-500.0,0.00013697,2]
[383480486,1756956445300,-373.18784151,0.00013697,2]
[383480487,1756956445328,-126.81215849,0.00013697,2]
[383480490,1756956493521,188.628,0.00029735,60]
[383480540,1756956638206,-1076.0964,0.00013598,2]
[383480541,1756956638261,-914.80031669,0.00013598,2]
[383480542,1756956638271,-178.72519726,0.00013695,2]
[383480543,1756956638281,-714.18588824,0.00013695,2]
[383480544,1756956638291,-1073.18784151,0.00013697,2]
[383480545,1756956638302,-300.0,0.00013697,2]
[383480546,1756956638312,-521.26915942,0.00013698,2]
[383480547,1756956638322,-480.0,0.00013698,2]
[383480548,1756956638331,-180.10504158,0.00013698,2]
[383480549,1756956638341,-480.57860312,0.00013698,2]
[383480550,1756956638351,-482.90631557,0.00013698,2]
[383480551,1756956638361,-154.96390539,0.00013698,2]
[383480552,1756956638372,-325.03609461,0.00013698,2]
[383480553,1756956638381,-480.90860451,0.00013698,2]
[383480554,1756956638390,-480.91300141,0.00013698,2]
[383480555,1756956638400,-481.59420721,0.00013698,2]
[383480557,1756956638411,-480.0,0.00013698,2]
[383480558,1756956638421,-482.29675203,0.00013698,2]
[383480559,1756956638431,-480.83960798,0.00013698,2]
[383480560,1756956638440,-480.0,0.00013698,2]
[383480561,1756956638448,-500.0,0.00013698,2]
[383480562,1756956638456,-482.90091575,0.00013698,2]
[383480563,1756956638464,-482.37709719,0.00013698,2]
[383480564,1756956638472,-480.0,0.00013698,2]
[383480565,1756956638482,-481.26936317,0.00013698,2]
[383480566,1756956638490,-481.56877535,0.00013698,2]
[383480567,1756956638499,-480.0,0.00013698,2]
[383480568,1756956638507,-480.0,0.00013698,2]
[383480569,1756956638515,-480.0,0.00013698,2]
[383480570,1756956638524,-480.0,0.00013698,2]
[383480571,1756956638533,-535.55637492,0.00013698,2]
[383480572,1756956638543,-480.0,0.00013698,2]
[383480573,1756956638553,-481.21505722,0.00013698,2]
[383480574,1756956638562,-485.44454963,0.00013698,2]
[383480575,1756956638572,-484.80609562,0.00013698,2]
[383480576,1756956638582,-480.55984304,0.00013698,2]
[383480577,1756956638593,-323.20692856,0.00013698,2]
[383480578,1756956638605,-480.0,0.00013698,2]
[383480579,1756956638615,-480.0,0.00013698,2]
[383480580,1756956638625,-486.50371993,0.00013698,2]
[383480581,1756956638635,-199.81239328,0.00013698,2]
[383480582,1756956638647,-491.78815202,0.00013698,2]
[383480583,1756956638656,-486.4566385,0.00013698,2]
[383480584,1756956638666,-480.0,0.00013698,2]
[383480585,1756956638676,-480.0,0.00013698,2]
[383480586,1756956638686,-483.18718343,0.00013698,2]
[383480587,1756956638697,-595.07282531,0.00013698,2]
[383480588,1756956638708,-357.05432877,0.00013698,2]
[383480589,1756956638718,-484.76608655,0.00013698,2]
[383480590,1756956638727,-484.49544778,0.00013698,2]
[383480591,1756956638736,-480.0,0.00013698,2]
[383480592,1756956638744,-995.49,0.00013698,2]
[383480593,1756956638753,-480.0,0.00013698,2]
[383480594,1756956638761,-482.35683221,0.00013698,2]
[383480595,1756956638770,-480.0,0.00013698,2]
[383480596,1756956638779,-480.0,0.00013698,2]
[383480597,1756956638787,-483.05264466,0.00013698,2]
[383480598,1756956638795,-482.67586152,0.00013698,2]
[383480599,1756956638804,-481.80966837,0.00013698,2]
[383480600,1756956638812,-480.0,0.00013698,2]
[383480601,1756956638822,-396.04567782,0.00013698,2]
[383480602,1756956638834,-551.78432218,0.00013698,2]
[383480603,1756956638844,-482.27565353,0.00013698,2]
[383480604,1756956638854,-483.17128234,0.00013698,2]
[383480605,1756956638863,-480.0,0.00013698,2]
[383480606,1756956638873,-702.60411307,0.00013698,2]
[383480607,1756956638885,-125.07588693,0.00013698,2]
[383480608,1756956638896,-638.67,0.00013698,2]
[383480609,1756956638906,-483.58843023,0.00013698,2]
[383480610,1756956638915,-237.11779469,0.00013698,2]
[383480611,1756956638924,-480.0,0.00013698,2]
[383480612,1756956638933,-481.79134859,0.00013698,2]
[383480613,1756956638943,-485.25436266,0.00013698,2]
[383480614,1756956638952,-483.21265341,0.00013698,2]
[383480615,1756956638962,-484.66216392,0.00013698,2]
[383480616,1756956638972,-503.78995004,0.00013698,2]
[383480617,1756956638981,-480.0,0.00013698,2]
[383480618,1756956638991,-499.91,0.00013698,2]
[383480619,1756956639000,-481.56602776,0.00013698,2]
[383480620,1756956639011,-485.6891513,0.00013698,2]
[383480621,1756956639021,-295.30049674,0.00013698,2]
[383480622,1756956639031,-481.47079174,0.00013698,2]
[383480623,1756956639040,-480.0,0.00013698,2]
[383480624,1756956639050,-480.0,0.00013698,2]
[383480625,1756956639059,-481.43141888,0.00013698,2]
[383480626,1756956639069,-1342.98,0.00013698,2]
[383480627,1756956639079,-595.67,0.00013698,2]
[383480628,1756956639093,-482.24643197,0.00013698,2]
[383480629,1756956639105,-480.0,0.00013698,2]
[383480630,1756956639115,-485.00117804,0.00013698,2]
[383480631,1756956639125,-480.0,0.00013698,2]
[383480632,1756956639134,-480.0,0.00013698,2]
[383480633,1756956639144,-480.0,0.00013698,2]
[383480634,1756956639153,-484.28782861,0.00013698,2]
[383480635,1756956639163,-481.54623038,0.00013698,2]
[383480636,1756956639171,-480.0,0.00013698,2]
[383480637,1756956639181,-481.78186912,0.00013698,2]
[383480638,1756956639191,-487.29,0.00013698,2]
[383480639,1756956639200,-481.74950066,0.00013698,2]
[383480640,1756956639209,-2004.89,0.00013698,2]
[383480641,1756956639218,-480.0,0.00013698,2]
[383480642,1756956639227,-480.0,0.00013698,2]
[383480643,1756956639236,-487.4845826,0.00013698,2]
[383480644,1756956639245,-480.0,0.00013698,2]
[383480645,1756956639255,-452.3593724,0.00013698,2]
[383480646,1756956639264,-480.0,0.00013698,2]
[383480647,1756956639273,-747.01,0.00013698,2]
[383480648,1756956639283,-480.0,0.00013698,2]
[383480649,1756956639291,-769.9,0.00013698,2]
[383480650,1756956639299,-481.9026613,0.00013698,2]
[383480651,1756956639307,-480.0,0.00013698,2]
[383480652,1756956639315,-784.007996,0.00013699,2]
[383480653,1756956639324,-282.71629,0.00013699,2]
[383480654,1756956639332,-177.94557728,0.00013837,2]
[383480655,1756956639341,-472.33525825,0.00013881,2]
[383480656,1756956639350,-278.31565323,0.00013881,2]
[383480657,1756956639359,-500.0,0.00013881,2]
[383480658,1756956639369,-230.98518225,0.00013881,2]
[383480659,1756956639377,-500.0,0.00013881,2]
[383480660,1756956639386,-500.0,0.00013881,2]
[383480661,1756956639394,-442.53018735,0.00013881,2]
[383480662,1756956639403,-500.0,0.00013881,2]
[383480663,1756956639412,-500.0,0.00013881,2]
[383480664,1756956639420,-359.38602563,0.00013881,2]
[383480665,1756956639429,-500.0,0.00013881,2]
[383480666,1756956639438,-500.0,0.00013881,2]
[383480667,1756956639447,-599.69446206,0.00013881,2]
[383480668,1756956639455,-500.0,0.00013881,2]
[383480669,1756956639465,-500.0,0.00013881,2]
[383480670,1756956639474,-344.41275432,0.00013881,2]
[383480671,1756956639484,-500.0,0.00013881,2]
[383480672,1756956639494,-584.18365161,0.00013881,2]
[383480673,1756956639503,-500.0,0.00013881,2]
[383480674,1756956639513,-500.0,0.00013881,2]
[383480675,1756956639522,-500.0,0.00013881,2]
[383480676,1756956639531,-500.0,0.00013881,2]
[383480677,1756956639541,-500.0,0.00013881,2]
[383480678,1756956639551,-500.0,0.00013881,2]
[383480679,1756956639561,-627.57110533,0.00013881,2]
[383480680,1756956639570,-500.0,0.00013881,2]
[383480681,1756956639580,-500.0,0.00013881,2]
[383480682,1756956639589,-1005.78016513,0.00013882,2]
[383480683,1756956639599,-2347.87260389,0.00013882,2]
[383480684,1756956639609,-250.0,0.00013882,2]
[383480685,1756956639618,-151.0,0.00013882,2]
[383480686,1756956639627,-250.0,0.00013882,2]
[383480687,1756956639637,-151.0,0.00013882,2]
[383480688,1756956639646,-151.0,0.00013882,2]
[383480689,1756956639656,-151.0,0.00013882,2]
[383480690,1756956639666,-271.44145063,0.00013882,2]
[383480691,1756956639675,-151.0,0.00013882,2]
[383480692,1756956639685,-151.0,0.00013882,2]
[383480693,1756956639695,-151.0,0.00013882,2]
[383480694,1756956639704,-151.0,0.00013882,2]
[383480695,1756956639713,-151.0,0.00013882,2]
[383480696,1756956639723,-151.0,0.00013882,2]
[383480697,1756956639732,-151.0,0.00013882,2]
[383480698,1756956639742,-250.0,0.00013882,2]
[383480699,1756956639751,-151.0,0.00013882,2]
[383480700,1756956639761,-151.0,0.00013882,2]
[383480701,1756956639771,-250.0,0.00013882,2]
[383480702,1756956639781,-151.0,0.00013882,2]
[383480703,1756956639790,-154.57353171,0.00013882,2]
[383480704,1756956639800,-250.0,0.00013882,2]